[Event "Oslo Chess Festival 2017"]
[Site "Oslo"]
[Date "2017.09.30"]
[Round "2"]
[White "Bartholomew, John"]
[Black "Li, Xueyi"]
[Result "1/2-1/2"]
[ECO "D36"]
[WhiteElo "2449"]
[BlackElo "2157"]
[Annotator "NA"]
[PlyCount "77"]
[EventDate "2017.??.??"]
[EventType "swiss"]
[EventCountry "NOR"]
[SourceTitle "playchess.com"]
[Source "ChessBase"]
[SourceQuality "1"]
[TimeControl "5400+30"]

{[%evp 8,52,1,-2,16,18,17,10,10,21,21,10,22,25,6,10,26,12,24,12,20,32767,26,12,140,138,147,0,0,0,0,15,24,0,0,-6,0,-1,0,0,0,0,0,0,32767,-13,0]} 1. d4 {[%emt 0:01:12]} d5 {[%emt 0:00:03]} 2. c4 {[%emt 0:00:07]} e6 {[%emt 0:00:05]} 3. Nc3 {[%emt 0:00:09]} c6 {[%emt 0:00:10]} 4. cxd5 {[%emt 0:00:37]} exd5 {[%emt 0:00:06]} 5. Qc2 {[%emt 0:00:07]} Nf6 {[%emt 0:01:20]} 6. Bg5 {[%emt 0:01:37]} Na6 {[%emt 0:00:47]} 7. a3 {[%emt 0:06:07]} Nc7 {[%emt 0:00:49]} 8. e3 {[%emt 0:00:13]} Be7 {[%emt 0:07:39]} 9. Bd3 {[%emt 0:04:35] D36: Queen's Gambit Declined: Exchange Variation: Main line (5 Bg5 c6 6 Qc2)} g6 {[%emt 0:07:39]} 10. Nf3 {[%emt 0:02:25]} Ne6 {[%emt 0:01:27]} 11. Bh4 {[%emt 0:00:36]} Ng7 {[%emt 0:00:48]} (11... O-O 12. O-O Ng7 13. b4 a6 14. Na4 Bf5 15. Nc5 Ra7 16. a4 Bxd3 17. Nxd3 Nf5 18. Bxf6 Bxf6 19. b5 cxb5 20. axb5 a5 21. Rfc1 b6 {1-0 (59) Carlsen,M (2850)-Bruzon Batista,L (2659) Berlin 2015}) 12. O-O {[%emt 0:02:01]} Bf5 {[%emt 0:02:00]} 13. b4 {[%emt 0:02:35]} a6 {[%emt 0:10:51] LiveBook: 12 Games} 14. a4 {[%emt 0:14:18]} Bxd3 {[%emt 0:11:14]} 15. Qxd3 {[%emt 0:00:11]} Bxb4 $146 {[%emt 0:01:24] [#]} (15... Nf5 $11 {keeps the balance.}) ({Predecessor:} 15... O-O 16. b5 axb5 17. axb5 Nf5 18. Bg5 Nd7 {1-0 (53) Glidzhain,G (2354)-Imashev,I (2283) Ufa 2009}) 16. Rab1 $1 {[%emt 0:02:02]} Bxc3 {[%emt 0:02:01]} 17. Qxc3 {[%emt 0:01:36]} (17. Rxb7 $16 Qc8 18. Rfb1) 17... Ne4 {[%emt 0:03:03]} 18. Qb4 {[%emt 0:08:50]} g5 {[%emt 0:17:52]} 19. Bg3 {[%emt 0:00:45]} Ra7 $1 {[%emt 0:05:28]} 20. Qb6 {[%emt 0:23:49]} Qxb6 {[%emt 0:01:04]} 21. Rxb6 {[%emt 0:00:04]} O-O {[%emt 0:01:33]} 22. Rfb1 {[%emt 0:01:56]} Ne6 {[%emt 0:05:55]} 23. Rxb7 {[%emt 0:03:25]} Rxb7 {[%emt 0:00:05]} 24. Rxb7 {[%emt 0:00:02]} c5 {[%emt 0:03:37]} 25. h3 {[%emt 0:06:18]} cxd4 {[%emt 0:09:17]} 26. exd4 {[%emt 0:00:45]} Rc8 $11 {[%emt 0:00:44]} 27. Rb6 {[%emt 0:03:07]} h5 {[%emt 0:01:05]} 28. Be5 {[%emt 0:11:20]} Rc1+ {[%emt 0:02:17]} 29. Kh2 {[%emt 0:00:04]} Nxf2 {[%emt 0:00:21]} 30. g3 {[%emt 0:01:40]} Nd3 {[%emt 0:00:38]} 31. Rxa6 {[%emt 0:00:26]} Nxe5 {[%emt 0:00:28]} 32. Nxe5 {[%emt 0:00:25]} Rc2+ {[%emt 0:00:04]} 33. Kh1 {[%emt 0:01:05]} Rc1+ {[%emt 0:00:26]} 34. Kg2 {[%emt 0:00:14]} Rc2+ {[%emt 0:00:13]} 35. Kf1 {[%emt 0:01:01]} Nxd4 {[%emt 0:00:27]} 36. Rf6 {[%emt 0:00:09]} Ne2 {[%emt 0:00:15]} 37. g4 {[%emt 0:00:00]} Ng3+ {[%emt 0:00:12]} 38. Kg1 {[%emt 0:00:05]} Ne2+ {[%emt 0:00:30]} 39. Kf1 {[%emt 0:00:10]} 1/2-1/2

[Event "Oslo Chess Festival 2017"]
[Site "Oslo"]
[Date "2017.09.30"]
[Round "2"]
[White "Xu, Yi"]
[Black "Kyrkjebo, Erlend"]
[Result "1-0"]
[ECO "B52"]
[WhiteElo "2439"]
[BlackElo "2122"]
[Annotator "NA"]
[PlyCount "69"]
[EventDate "2017.??.??"]
[EventType "swiss"]
[EventCountry "NOR"]
[SourceTitle "playchess.com"]
[Source "ChessBase"]
[SourceQuality "1"]
[TimeControl "5400+30"]

{[%evp 8,55,25,32767,32767,32767,32767,32767,32767,32767,30,31,38,27,21,32767,25,30,28,29,40,47,52,32767,79,83,74,86,102,107,32767,87,97,97,93,91,90,87,32767,93,142,131,188,156,156,166,32767,32767,32767,175]} 1. e4 {[%emt 0:00:02]} c5 {[%emt 0:00:14]} 2. Nf3 {[%emt 0:00:04]} d6 {[%emt 0:00:07]} 3. Bb5+ {[%emt 0:00:05]} Bd7 {[%emt 0:00:28]} 4. Bxd7+ {[%emt 0:00:06]} Qxd7 {[%emt 0:00:09]} 5. c4 {[%emt 0:00:07]} g6 {[%emt 0:07:10]} 6. d4 {[%emt 0:00:39]} cxd4 {[%emt 0:00:16]} 7. Nxd4 {[%emt 0:00:05]} Bg7 {[%emt 0:00:19]} 8. Nc3 {[%emt 0:00:19]} Nc6 {[%emt 0:01:36]} 9. Be3 {[%emt 0:00:24]} Nf6 {[%emt 0:02:46]} 10. f3 {[%emt 0:00:10]} O-O {[%emt 0:00:24]} 11. Rc1 {[%emt 0:01:11] B52: Sicilian: Moscow Variation with 3...Bd7} Rfd8 {[%emt 0:02:51]} 12. O-O {[%emt 0:01:45]} e6 {[%emt 0:18:41] LiveBook: 12 Games} 13. Nxc6 {[%emt 0:09:41] [#]} Qxc6 $146 {[%emt 0:06:33]} ({Predecessor:} 13... bxc6 14. Rf2 d5 15. Rd2 Qe8 16. e5 Nd7 17. f4 Nb6 18. b3 dxc4 19. Ne4 Nd5 {0-1 (33) Giri,A (2798)-Anand,V (2784) Zuerich 2016}) 14. Qe2 {[%emt 0:02:06]} Nd7 {[%emt 0:06:12]} 15. Rfd1 {[%emt 0:05:39]} a5 {[%emt 0:07:43]} 16. Nb5 {[%emt 0:03:22]} Nc5 {[%emt 0:03:06]} 17. b3 {[%emt 0:00:45]} b6 {[%emt 0:03:04]} 18. Rd2 {[%emt 0:04:54]} Rd7 {[%emt 0:08:04]} 19. Rcd1 {[%emt 0:02:04]} Rad8 {[%emt 0:00:23]} 20. Bg5 {[%emt 0:01:53]} f6 {[%emt 0:00:23]} 21. Bf4 {[%emt 0:00:07]} Bf8 {[%emt 0:08:49]} 22. Be3 {[%emt 0:05:24]} Bg7 {[%emt 0:05:17]} 23. Kh1 {[%emt 0:06:04]} Kf7 {[%emt 0:07:09]} (23... h5 $142) 24. h3 {[%emt 0:05:03]} Nb7 {[%emt 0:01:26]} (24... Kg8 $16 25. Bf4 Bf8) 25. a3 {[%emt 0:07:28]} Nc5 {[%emt 0:02:11]} 26. Nd4 {[%emt 0:03:04]} Qc7 {[%emt 0:02:42]} 27. b4 {[%emt 0:01:09]} Na6 {[%emt 0:01:57]} 28. b5 $18 {[%emt 0:09:57]} Nb8 {[%emt 0:02:11]} 29. Rc2 {[%emt 0:01:16]} Qc8 {[%emt 0:01:52]} 30. f4 {[%emt 0:02:15]} f5 {[%emt 0:00:43]} 31. exf5 {[%emt 0:00:26]} exf5 {[%emt 0:00:20]} 32. Qf3 {[%emt 0:00:28]} Bxd4 {[%emt 0:00:42]} 33. Qd5+ {[%emt 0:00:50]} Kf8 {[%emt 0:00:47]} 34. Qxd4 {[%emt 0:00:06]} d5 {[%emt 0:00:35]} 35. Qh8+ {[%emt 0:00:53]} 1-0

[Event "Oslo Chess Festival 2017"]
[Site "Oslo"]
[Date "2017.09.30"]
[Round "2"]
[White "Pigott, John C"]
[Black "Rishovd, Svein"]
[Result "1-0"]
[ECO "C18"]
[WhiteElo "2408"]
[BlackElo "2109"]
[Annotator "NA"]
[PlyCount "71"]
[EventDate "2017.??.??"]
[EventType "swiss"]
[EventCountry "NOR"]
[SourceTitle "playchess.com"]
[Source "ChessBase"]
[SourceQuality "1"]
[TimeControl "5400+30"]

{[%evp 11,68,27,32767,32767,32767,32767,32767,17,15,35,18,22,28,6,17,1,32,12,6,2,0,0,21,32767,0,-27,32767,-44,32767,-60,239,245,281,255,279,344,358,32767,32767,32767,32767,32767,32767,32767,32767,1326,1568,2280,1200,32767,29989,29990,29990,1133,5152,2262,891,995,931]} 1. e4 {[%emt 0:00:26]} e6 {[%emt 0:00:14]} 2. d4 {[%emt 0:00:11]} d5 {[%emt 0:00:07]} 3. Nc3 {[%emt 0:00:15]} Bb4 {[%emt 0:00:23]} 4. e5 {[%emt 0:00:34]} c5 {[%emt 0:00:07]} 5. a3 {[%emt 0:00:12]} Ba5 {[%emt 0:00:16]} 6. b4 {[%emt 0:02:06]} cxd4 {[%emt 0:00:20]} 7. Qg4 {[%emt 0:01:13]} Kf8 {[%emt 0:00:17] C18: French: 3 Nc3 Bb4: Main line: 7 h4 and 7 Qg4} 8. Nb5 {[%emt 0:01:03]} (8. bxa5 dxc3 9. Nf3 Nc6 10. h4 Nge7 11. h5 h6 12. a6 bxa6 13. Bd3 Rb8 14. Be3 Nf5 15. Bc5+ {½-½ (25) Salem,A (2656)-Vallejo Pons,F (2709) Sharjah 2017}) 8... Bb6 {[%emt 0:00:24]} 9. Nf3 {[%emt 0:01:10]} ({Much worse is} 9. Nxd4 Qc7 $15) 9... Nc6 {[%emt 0:00:19]} 10. Bb2 $1 {[%emt 0:02:04]} Nge7 {[%emt 0:00:46]} 11. Nbxd4 {[%emt 0:17:40]} h5 {[%emt 0:01:12]} 12. Qf4 {[%emt 0:12:21] LiveBook: 3 Games} Ng6 {[%emt 0:00:24]} 13. Nxc6 {[%emt 0:15:47]} bxc6 {[%emt 0:00:07]} 14. Qd2 {[%emt 0:00:39]} Nh4 {[%emt 0:00:16]} 15. Nxh4 {[%emt 0:04:45]} Qxh4 {[%emt 0:00:09] [#]} 16. Bd3 $146 {[%emt 0:00:06]} a5 {[%emt 0:01:07]} 17. O-O {[%emt 0:03:36]} g6 {[%emt 0:06:30]} 18. Kh1 {[%emt 0:05:16]} Ba6 {[%emt 0:14:46]} 19. Qc3 {[%emt 0:04:51]} Bxd3 {[%emt 0:24:56]} 20. cxd3 {[%emt 0:00:20]} Bxf2 $2 {[%emt 0:05:48] [#]} (20... Kg7 $15 {keeps the upper hand.}) 21. d4 $1 {[%emt 0:03:52]} ({And not} 21. Qxc6 Kg7 $15) 21... axb4 {[%emt 0:10:27]} 22. Qf3 {[%emt 0:03:07]} ({And not} 22. Qxc6 Kg7 $17) 22... f5 {[%emt 0:04:12]} 23. exf6 {[%emt 0:04:03]} ({Resist} 23. Rxf2 Kg7 $18) ({Less strong is} 23. Qxf2 Qxf2 24. Rxf2 bxa3 $18) 23... Bxd4 {[%emt 0:00:29]} 24. g3 {[%emt 0:00:12]} Qg4 {[%emt 0:00:42]} 25. Qxg4 {[%emt 0:00:07]} hxg4 {[%emt 0:00:02]} 26. Bxd4 {[%emt 0:00:08]} Kf7 {[%emt 0:02:31]} 27. axb4 {[%emt 0:00:07]} Rxa1 {[%emt 0:01:13]} 28. Rxa1 {[%emt 0:00:10]} e5 {[%emt 0:03:00]} 29. Bxe5 {[%emt 0:00:08]} Ke6 {[%emt 0:00:05]} 30. Bd4 {[%emt 0:00:37]} Rb8 {[%emt 0:00:59]} 31. Re1+ {[%emt 0:00:51]} Kf5 {[%emt 0:00:09]} 32. Rf1+ {[%emt 0:00:20]} (32. f7 $142 c5 33. Re8 Rxe8 34. fxe8=Q cxd4 35. b5 d3 36. b6 Kf6 37. b7) 32... Ke6 {[%emt 0:00:14]} 33. f7 {[%emt 0:02:45]} Rf8 {[%emt 0:02:29]} 34. Rf6+ $18 {[%emt 0:00:10]} Ke7 {[%emt 0:00:23]} 35. Rxc6 {[%emt 0:00:12]} Rxf7 {[%emt 0:00:26]} 36. Rc7+ {[%emt 0:00:06]} 1-0

[Event "Oslo Chess Festival 2017"]
[Site "Oslo"]
[Date "2017.09.30"]
[Round "2"]
[White "Stark, Lars"]
[Black "Bentsen, Hakon"]
[Result "1/2-1/2"]
[ECO "E05"]
[WhiteElo "2397"]
[BlackElo "2071"]
[Annotator "NA"]
[PlyCount "119"]
[EventDate "2017.??.??"]
[EventType "swiss"]
[EventCountry "NOR"]
[SourceTitle "playchess.com"]
[Source "ChessBase"]
[SourceQuality "1"]
[TimeControl "5400+30"]

1. c4 {[%emt 0:00:00]} Nf6 {[%emt 0:00:15]} 2. g3 {[%emt 0:00:26]} e6 {[%emt 0:00:19]} 3. Bg2 {[%emt 0:00:45]} d5 {[%emt 0:00:08]} 4. Nf3 {[%emt 0:00:21]} Be7 {[%emt 0:00:23]} 5. O-O {[%emt 0:01:14]} O-O {[%emt 0:00:31]} 6. Ne5 {[%emt 0:00:41]} Nc6 {[%emt 0:01:36]} 7. Nxc6 {[%emt 0:11:00]} bxc6 {[%emt 0:00:16]} 8. d4 {[%emt 0:09:44]} dxc4 {[%emt 0:05:44]} 9. Na3 {[%emt 0:10:50] LiveBook: 256 Partien} Bxa3 {[%emt 0:03:34] E05: Open Catalan: 5 Nf3 Be7} 10. Bxc6 {[%emt 0:03:46]} (10. bxa3 Ba6 11. Qd2 Rb8 12. Rd1 Qc8 13. Qc2 h6 14. Bd2 Nd5 15. e4 Nb6 16. Bb4 Rd8 17. a4 Nd5 18. exd5 Rxb4 19. dxc6 {½-½ (71) Inarkiev,E (2707)-Hou,Y (2666) Geneve 2017}) 10... Bb7 {[%emt 0:02:29]} 11. Bxb7 {[%emt 0:00:18]} Rb8 {[%emt 0:00:04]} 12. bxa3 {[%emt 0:13:21]} Rxb7 {[%emt 0:00:19]} 13. Bg5 {[%emt 0:00:11]} Qd5 {[%emt 0:01:24]} 14. Bxf6 {[%emt 0:00:06]} gxf6 {[%emt 0:00:05]} 15. e3 {[%emt 0:01:30]} c5 {[%emt 0:00:53] [#]} 16. Qg4+ $146 {[%emt 0:01:35]} ({Predecessor:} 16. Rc1 cxd4 17. Qg4+ Kh8 18. Rfd1 d3 19. Rxc4 e5 20. Qf5 Qxc4 21. Qxf6+ Kg8 22. Qg5+ Kh8 23. Qf6+ {½-½ (24) Hansen,C (2600)-Antonsen,M (2458) Svendborg 2016}) 16... Qg5 {[%emt 0:00:43]} 17. Qf3 {[%emt 0:00:53]} Rc7 {[%emt 0:01:17]} 18. h4 {[%emt 0:00:41]} Qf5 {[%emt 0:10:32]} 19. Qxf5 {[%emt 0:00:21]} exf5 {[%emt 0:00:07]} 20. d5 {[%emt 0:03:08]} Rd8 {[%emt 0:00:13]} 21. Rfd1 {[%emt 0:00:27]} Rcd7 {[%emt 0:00:36]} 22. Rac1 {[%emt 0:00:10]} Rxd5 {[%emt 0:00:17]} 23. Rxd5 {[%emt 0:00:06]} Rxd5 {[%emt 0:00:04]} 24. Rxc4 {[%emt 0:00:05]} Rd3 {[%emt 0:00:11]} 25. Ra4 {[%emt 0:00:37]} Rd2 {[%emt 0:00:54]} 26. Rxa7 {[%emt 0:00:32]} Rxa2 {[%emt 0:00:07]} 27. Rc7 {[%emt 0:00:25]} Rc2 {[%emt 0:00:38]} 28. a4 {[%emt 0:01:02]} h5 {[%emt 0:01:29]} 29. a5 {[%emt 0:00:11]} Kg7 {[%emt 0:00:06]} 30. a6 {[%emt 0:00:06]} Kg6 {[%emt 0:00:10]} 31. a7 {[%emt 0:00:08]} Ra2 {[%emt 0:00:06]} 32. Kf1 {[%emt 0:00:13]} c4 {[%emt 0:00:07]} 33. Ke1 {[%emt 0:00:14]} c3 {[%emt 0:00:07]} 34. Kd1 {[%emt 0:00:09]} c2+ {[%emt 0:00:13]} 35. Kd2 {[%emt 0:03:45]} ({Auf keinen Fall} 35. Rxc2 $6 Ra1+ 36. Kd2 Rxa7 $16) 35... Kg7 {[%emt 0:00:29]} 36. f3 {[%emt 0:14:13]} Kg6 {[%emt 0:00:53]} 37. e4 {[%emt 0:00:43]} fxe4 {[%emt 0:00:19]} 38. fxe4 {[%emt 0:00:06]} Kg7 {[%emt 0:00:18]} 39. Kc1 {[%emt 0:04:40]} Kg6 {[%emt 0:00:13]} 40. Rc6 {[%emt 0:01:42]} Kg7 {[%emt 0:00:53]} 41. Rc7 {[%emt 0:00:10]} Kg6 {[%emt 0:00:07]} 42. Kd2 {[%emt 0:00:03]} Kg7 {[%emt 0:00:09]} 43. Rxc2 {[%emt 0:00:54]} Rxa7 {[%emt 0:00:08]} 44. Ke3 {[%emt 0:00:06]} Ra1 {[%emt 0:00:43]} 45. Rf2 {[%emt 0:00:14]} Kg6 {[%emt 0:00:16]} 46. Kf4 {[%emt 0:00:07]} Ra4 {[%emt 0:00:13]} 47. Re2 {[%emt 0:01:24]} f5 {[%emt 0:00:17]} 48. Kf3 {[%emt 0:00:17]} fxe4+ {[%emt 0:00:30]} 49. Rxe4 {[%emt 0:00:12]} Rxe4 {[%emt 0:02:07]} 50. Kxe4 {[%emt 0:00:03]} f6 {[%emt 0:00:04]} 51. Kf4 {[%emt 0:00:16]} Kg7 {[%emt 0:00:06]} 52. Ke3 {[%emt 0:00:15]} Kf7 {[%emt 0:01:39]} 53. Kf3 {[%emt 0:02:09]} Ke6 {[%emt 0:01:12]} 54. Kf4 {[%emt 0:00:11]} Ke7 {[%emt 0:00:05]} 55. Ke3 {[%emt 0:01:10]} Ke6 {[%emt 0:01:30]} 56. Kf4 {[%emt 0:00:17]} Ke7 {[%emt 0:00:06]} 57. Kf3 {[%emt 0:00:05]} Ke6 {[%emt 0:00:08]} 58. Ke4 {[%emt 0:00:28]} Ke7 {[%emt 0:00:22]} 59. Kd5 {[%emt 0:01:36]} Kd7 $11 {[%emt 0:00:05]} 60. Ke4 {[%emt 0:00:38]} 1/2-1/2

[Event "Oslo Chess Festival 2017"]
[Site "Oslo"]
[Date "2017.09.30"]
[Round "2"]
[White "Ernst, Thomas"]
[Black "Gonzalez, Francisco Silva"]
[Result "1/2-1/2"]
[ECO "C78"]
[WhiteElo "2371"]
[BlackElo "2046"]
[Annotator "ChessBase"]
[PlyCount "51"]
[EventDate "2017.??.??"]
[EventType "swiss"]
[EventCountry "NOR"]
[SourceTitle "playchess.com"]
[Source "ChessBase"]
[SourceQuality "1"]
[TimeControl "5400+30"]

1. e4 {[%emt 0:00:05]} e5 {[%emt 0:03:45]} 2. Nf3 {[%emt 0:00:06]} Nc6 {[%emt 0:00:18]} 3. Bb5 {[%emt 0:00:15]} a6 {[%emt 0:00:11]} 4. Ba4 {[%emt 0:00:06]} Nf6 {[%emt 0:00:14]} 5. O-O {[%emt 0:00:11]} Bc5 {[%emt 0:00:43]} 6. c3 {[%emt 0:00:33]} b5 {[%emt 0:00:43]} 7. Bb3 {[%emt 0:01:18]} d6 {[%emt 0:00:13]} 8. d4 {[%emt 0:04:37]} Bb6 {[%emt 0:00:54]} 9. dxe5 {[%emt 0:03:30]} Nxe5 {[%emt 0:00:43]} 10. Nxe5 {[%emt 0:00:27]} dxe5 {[%emt 0:00:13]} 11. Qxd8+ {[%emt 0:00:14]} Kxd8 {[%emt 0:00:11]} 12. Bxf7 {[%emt 0:00:14]} Rf8 {[%emt 0:00:11]} 13. Bd5 {[%emt 0:05:07]} Nxd5 {[%emt 0:00:09]} 14. exd5 {[%emt 0:00:04]} Bb7 {[%emt 0:00:04]} 15. c4 {[%emt 0:01:12]} bxc4 {[%emt 0:00:23]} 16. Nc3 {[%emt 0:00:07]} Bd4 {[%emt 0:02:10]} 17. Be3 {[%emt 0:00:18]} Bxc3 {[%emt 0:06:39]} 18. bxc3 {[%emt 0:00:06]} Bxd5 {[%emt 0:00:17]} 19. Rad1 {[%emt 0:02:28]} c6 {[%emt 0:00:42]} 20. Rb1 {[%emt 0:00:14]} Kc7 {[%emt 0:06:26]} 21. f4 {[%emt 0:01:00]} Rab8 {[%emt 0:03:27]} 22. Rxb8 {[%emt 0:01:10]} Rxb8 {[%emt 0:00:07]} 23. fxe5 {[%emt 0:00:10]} Rb2 {[%emt 0:00:03]} 24. Rf2 {[%emt 0:00:12]} Rb1+ {[%emt 0:00:57]} 25. Rf1 {[%emt 0:00:05]} Rb2 {[%emt 0:00:14]} 26. Rf2 {[%emt 0:00:10]} 1/2-1/2

[Event "Oslo Chess Festival 2017"]
[Site "Oslo"]
[Date "2017.09.30"]
[Round "2"]
[White "Maksimovic, Branimir"]
[Black "Bruaset, Eivind"]
[Result "0-1"]
[ECO "C18"]
[WhiteElo "2343"]
[BlackElo "2012"]
[Annotator "NA"]
[PlyCount "146"]
[EventDate "2017.??.??"]
[EventType "swiss"]
[EventCountry "NOR"]
[SourceTitle "playchess.com"]
[Source "ChessBase"]
[SourceQuality "1"]
[TimeControl "5400+30"]

1. e4 {[%emt 0:00:38]} e6 {[%emt 0:00:33]} 2. d4 {[%emt 0:00:07]} d5 {[%emt 0:00:08]} 3. Nc3 {[%emt 0:00:33]} Bb4 {[%emt 0:00:59]} 4. e5 {[%emt 0:00:10]} c5 {[%emt 0:00:09]} 5. a3 {[%emt 0:00:07]} Bxc3+ {[%emt 0:00:09]} 6. bxc3 {[%emt 0:00:02]} Qa5 {[%emt 0:00:13]} 7. Bd2 {[%emt 0:00:24]} Qa4 {[%emt 0:00:08]} 8. Qg4 {[%emt 0:00:07]} g6 {[%emt 0:01:35]} 9. Nf3 {[%emt 0:01:15] C18: French: 3 Nc3 Bb4: Main line: 7 h4 and 7 Qg4} c4 {[%emt 0:02:19]} (9... Nc6 10. Be2 b6 11. O-O cxd4 12. Nxd4 Nxd4 13. cxd4 Ba6 14. Bxa6 Qxa6 15. c4 Ne7 16. Bb4 Qb7 17. Bxe7 Qxe7 18. cxd5 exd5 {1-0 (50) Bobras,P (2523)-Socko,B (2613) Bialystok 2016}) 10. Be2 {[%emt 0:01:39] LiveBook: 5 Games} Qxc2 {[%emt 0:14:46]} 11. O-O {[%emt 0:01:54]} h6 {[%emt 0:12:44]} ({Predecessor:} 11... Nd7 12. a4 Qf5 13. Qg3 h5 14. Nh4 Qc2 15. Qg5 Nf8 16. Rfc1 Qb2 {½-½ (45) Papp,P (2302)-Stojkovska,M (1997) Skopje 2014}) 12. Bd1 {[%emt 0:01:29]} Qf5 {[%emt 0:02:15]} 13. Qg3 {[%emt 0:00:25]} g5 {[%emt 0:03:24]} 14. Ra2 {[%emt 0:01:47]} Qg6 $1 {[%emt 0:04:35]} 15. Bc2 {[%emt 0:00:08]} Qh5 {[%emt 0:03:42]} 16. Bd1 {[%emt 0:07:31]} Qg6 {[%emt 0:01:54]} 17. h4 {[%emt 0:03:38]} gxh4 {[%emt 0:06:19]} 18. Qxh4 {[%emt 0:00:59]} Ne7 {[%emt 0:03:31]} 19. Bc2 {[%emt 0:00:50]} Nf5 {[%emt 0:05:10]} 20. Qh3 {[%emt 0:00:16]} Qg7 {[%emt 0:00:49]} 21. g3 {[%emt 0:10:53]} Nc6 {[%emt 0:02:40]} 22. Kg2 {[%emt 0:12:51]} Nce7 {[%emt 0:02:51]} 23. Rb2 {[%emt 0:06:53]} b6 {[%emt 0:05:42]} 24. a4 {[%emt 0:01:31]} Bd7 {[%emt 0:01:16]} 25. a5 {[%emt 0:02:16]} b5 {[%emt 0:02:38]} 26. a6 {[%emt 0:00:10]} Kd8 {[%emt 0:01:18]} (26... Rb8 $1 $11) 27. Rh1 {[%emt 0:07:22]} Rb8 {[%emt 0:04:53] [#]} (27... Kc7 $14) 28. Bg5 $1 {[%emt 0:01:26]} Rg8 {[%emt 0:03:52]} 29. Bf6 {[%emt 0:00:12]} ({Not} 29. Bxh6 Nxh6 30. Qxh6 Qxh6 $15) 29... Qf8 {[%emt 0:04:02]} 30. Kf1 $2 {[%emt 0:03:48]} ({White should try} 30. Bxf5 $1 $16 exf5 31. Qxh6) 30... Kc7 {[%emt 0:06:25]} 31. g4 {[%emt 0:00:12]} Ng6 $2 {[%emt 0:03:49]} (31... Nc6 $1 $15 {behält die Oberhand.} 32. gxf5 Qa3) 32. gxf5 {[%emt 0:00:36]} Qa3 {[%emt 0:00:31]} 33. fxg6 {[%emt 0:03:28]} Qxb2 {[%emt 0:00:30]} 34. Ne1 {[%emt 0:00:52]} fxg6 {[%emt 0:00:30]} 35. Be7 {[%emt 0:00:27]} Rb6 {[%emt 0:00:41]} 36. Bd6+ {[%emt 0:00:25]} Kc6 {[%emt 0:00:24]} 37. Qxh6 {[%emt 0:04:21]} Rxa6 {[%emt 0:00:22]} 38. Qd2 {[%emt 0:00:29]} Rb6 {[%emt 0:01:10]} 39. Ke2 {[%emt 0:08:30]} Qa1 {[%emt 0:00:43]} 40. Rg1 {[%emt 0:00:43]} Qa6 {[%emt 0:00:26]} 41. Rxg6 {[%emt 0:00:42]} Qc8 {[%emt 0:00:05]} 42. Qg5 {[%emt 0:02:09]} Rxg6 {[%emt 0:00:20]} 43. Bxg6 {[%emt 0:00:31]} Be8 {[%emt 0:00:29]} 44. Nc2 {[%emt 0:01:49]} a5 {[%emt 0:00:16]} 45. f4 {[%emt 0:00:32]} Rb7 {[%emt 0:01:03]} 46. f5 {[%emt 0:02:11]} Bxg6 {[%emt 0:00:10]} 47. fxg6 {[%emt 0:05:56]} Rg7 {[%emt 0:00:28]} 48. Kd2 {[%emt 0:02:49]} Qg8 {[%emt 0:00:15]} 49. Kc1 {[%emt 0:00:07]} Rxg6 {[%emt 0:00:12]} 50. Qe7 {[%emt 0:00:09]} Rg7 {[%emt 0:00:04]} 51. Qf6 {[%emt 0:00:03]} Rg6 {[%emt 0:00:02]} 52. Qh4 {[%emt 0:01:24]} Rg4 {[%emt 0:00:40]} 53. Qh6 {[%emt 0:00:59]} Rg6 {[%emt 0:00:26]} 54. Qf8 {[%emt 0:00:25]} Qxf8 {[%emt 0:01:45]} 55. Bxf8 {[%emt 0:00:01]} Rg3 {[%emt 0:00:39]} 56. Kb2 {[%emt 0:00:04]} Rg2 {[%emt 0:00:20]} 57. Be7 {[%emt 0:00:01]} Kd7 {[%emt 0:00:26]} 58. Bc5 {[%emt 0:00:06]} Kc6 {[%emt 0:00:18]} 59. Be7 {[%emt 0:00:02]} Kd7 {[%emt 0:00:03]} 60. Bf8 {[%emt 0:00:10]} Kc6 {[%emt 0:00:14]} 61. Kc1 {[%emt 0:00:06]} Rg3 {[%emt 0:00:44]} 62. Kb2 {[%emt 0:00:27]} Rg2 {[%emt 0:00:01]} 63. Bh6 {[%emt 0:00:20]} b4 {[%emt 0:00:23]} 64. Kb1 {[%emt 0:02:03]} Kb5 {[%emt 0:01:17]} 65. Bf8 {[%emt 0:00:08]} Rg3 {[%emt 0:00:26]} 66. cxb4 {[%emt 0:03:18]} axb4 {[%emt 0:00:05]} 67. Kb2 {[%emt 0:00:07]} Ka4 {[%emt 0:00:43]} 68. Kb1 {[%emt 0:03:59]} Kb3 {[%emt 0:01:53]} 69. Bxb4 {[%emt 0:00:10]} Rg2 {[%emt 0:00:11]} 70. Ne1 {[%emt 0:00:39]} Rg1 $19 {[%emt 0:00:24]} 71. Bd2 {[%emt 0:00:16]} c3 {[%emt 0:00:05]} 72. Kc1 {[%emt 0:00:02]} cxd2+ {[%emt 0:00:25]} 73. Kxd2 {[%emt 0:00:02]} Rxe1 {[%emt 0:00:14]} 0-1